Cogmind - Beta 14 @@@ ROGUE MODE // 2024.09.03 @ 21:52:47 Player: Buttons Result: Destroyed by G-47 Trooper with Particle Gun Performance ------------- Evolutions (1) 500 Regions Visited (6) 1200 Robots Destroyed (61) 305 Value Destroyed (1074) 1074 Prototype IDs (25) 500 Alien Tech Used (0) 0 Bonus (342) 342 TOTAL SCORE: 3921 Bonus ------- High Alert Combat Kills 17 Follower Combat Kills 25 Aligned with FarCom 300 Cogmind --------- Core Integrity 0/400 Matter 186/300 Energy 60/100 System Corruption 12% Temperature Cool (68) Movement Walking (130) Location -8/Mines Parts ------- > --- POWER (1) -------- (None) > --- PROPULSION (3) --- Titanium Leg (fused) > --- UTILITY (3) ------ Lightpack 2.0 > --- WEAPON (2) ------- Spread Laser > --- INVENTORY (40) --- Flight Unit Flight Unit VTOL Module VTOL Module Heat Sink Large Storage Unit Improved Terrain Scanner Improved Terrain Scanner Terrain Scan Processor Rocket Launcher Mini Grenade Launcher Peak State ------------ > --- POWER ------------ (None) > --- PROPULSION ------- Titanium Leg > --- UTILITY ---------- Lightpack 2.0 > --- WEAPON ----------- Spread Laser Bore Cannon > --- INVENTORY -------- Flight Unit Flight Unit VTOL Module VTOL Module Heat Sink Large Storage Unit Improved Terrain Scanner Improved Terrain Scanner Terrain Scan Processor Rocket Launcher Mini Grenade Launcher [Rating: 42] Favorites ----------- Power Light Ion Engine Engine Light Ion Engine Propulsion Aluminum Leg Leg Aluminum Leg Flight Unit Flight Unit Utility Large Storage Unit Device Improved Terrain Scanner Storage Large Storage Unit Processor Terrain Scan Processor Protection Light Armor Plating Weapon Light Assault Rifle Energy Gun Small Laser Ballistic Gun Light Assault Rifle Ballistic Cannon Bore Cannon Launcher Mini Grenade Launcher Build | -11 -10 -10 -9 -9 -9 -8 ------- Run | Yrd Mat Min Mat Min Exi Min Slots Evolved 2 | . . . 2 . . . Power . | . . . . . . . Propulsion 1 | . . . 1 . . . Utility 1 | . . . 1 . . . Weapon . | . . . . . . . Parts Attached 65 | 7 12 8 30 5 1 2 Power 7 | 1 2 . 3 1 . . Engine 7 | 1 2 . 3 1 . . Core . | . . . . . . . Reactor . | . . . . . . . Propulsion 23 | 2 3 3 14 1 . . Treads . | . . . . . . . Leg 19 | 2 3 3 10 1 . . Wheel . | . . . . . . . Hover . | . . . . . . . Flight 4 | . . . 4 . . . Utility 10 | 2 2 . 4 1 1 . Device 3 | 2 . . 1 . . . Storage 3 | . 1 . 1 . 1 . Processor 2 | . 1 . 1 . . . Hackware . | . . . . . . . Protection 2 | . . . 1 1 . . Artifact . | . . . . . . . Weapon 25 | 2 5 5 9 2 . 2 Energy Gun 5 | 1 2 . 1 . . 1 Energy Cannon . | . . . . . . . Ballistic Gun 9 | 1 2 3 3 . . . Ballistic Cannon 6 | . . . 4 1 . 1 Launcher 5 | . 1 2 1 1 . . Special Weapon . | . . . . . . . Impact Weapon . | . . . . . . . Slashing Weapon . | . . . . . . . Piercing Weapon . | . . . . . . . Special Melee Weapon . | . . . . . . . Unidentified Prototypes . | . . . . . . . Parts Lost 17 | . 3 2 3 8 . 1 Power 4 | . 1 . 1 2 . . Propulsion 8 | . 1 2 2 3 . . Utility 2 | . . . . 2 . . Weapon 3 | . 1 . . 1 . 1 Highest Loss Streak 7 | . 1 1 1 7 . 1 To Critical Strikes . | . . . . . . . Average Slot Usage (%) 82 | . 96 92 94 72 25 41 Engine 9 | . 10 14 10 3 . . Leg 23 | . 28 21 30 16 11 11 Device 3 | . 6 . 5 . . . Storage 11 | . 9 14 11 11 11 11 Processor 11 | . 12 14 12 11 3 . Protection 1 | . . . 2 8 . . Energy Gun 5 | . 19 . . . . 11 Ballistic Gun 11 | . 8 25 11 3 . . Ballistic Cannon 3 | . . . 9 10 . 8 Launcher 1 | . . 3 . 8 . . Peak Build Rating 42 | 9 10 12 23 23 35 42 Average Rating 14 | 4 9 9 17 16 25 40 On Entrance 14 | . 9 10 12 23 14 35 Naked Turns . | . . . . . . . Heaviest Build 38 | 7 27 28 38 38 20 17 Greatest Support 51 | 20 20 25 51 51 17 17 Greatest Overweight (x) 8 | . 1 8 6 2 1 . Average Overweight (x) . | . . 1 . . . . Largest Inventory Capacity 40 | 5 15 15 15 15 40 40 Average Capacity 16 | 5 11 15 15 15 31 40 Most Carried 15 | 4 15 15 15 14 13 12 Average Carried 12 | 1 9 14 14 11 12 11 Final Capacity 40 | 5 15 15 15 15 40 40 Final Carried 15 | 4 15 12 14 11 13 11 Class Distribution -------------------- 63% | Scavenger-Mutant 26% | Mutant 9% | Hauler-Mutant Dominant Class ---------------- Scavenger-Mutant | -10/Materials Scavenger-Mutant | -10/Mines Scavenger-Mutant | -9/Materials Mutant | -9/Mines Hauler-Mutant | -9/Exiles Hauler-Mutant | -8/Mines Resources | -11 -10 -10 -9 -9 -9 -8 ----------- Run | Yrd Mat Min Mat Min Exi Min Matter Collected 1774 | 282 87 295 777 333 . . Remotely . | . . . . . . . Salvage Created 1672 | 144 312 171 1002 43 . . Parts 116 | 11 33 13 59 . . . Haulers Intercepted 2 | . . . 2 . . . Recyclers Shooed 3 | . . . 3 . . . Parts Field Recycled . | . . . . . . . Retrieved Matter . | . . . . . . . Parts Self-Destructed . | . . . . . . . Prevented . | . . . . . . . Kills | -11 -10 -10 -9 -9 -9 -8 ------- Run | Yrd Mat Min Mat Min Exi Min Combat Hostiles Destroyed 53 | 1 12 6 20 14 . . Guns 20 | 1 9 . 9 1 . . Cannons 10 | . . . 9 1 . . AOE 23 | . 3 6 2 12 . . Classes Destroyed 10 | 3 2 2 2 1 . . Worker 5 | 1 3 1 . . . . Builder 4 | . 1 1 2 . . . Tunneler 4 | 4 . . . . . . Hauler 2 | . . . 2 . . . Recycler 5 | . . 1 4 . . . Mechanic 1 | . . 1 . . . . Swarmer 21 | . 9 3 9 . . . Grunt 13 | 1 3 3 6 . . . Sentry 5 | . . . 5 . . . Assembled 13 | . . . . 13 . . Best Kill Streak 7 | 6 4 4 5 7 . . Combat Bots Only 7 | 1 3 3 4 7 . . Max Kills in Single Turn 3 | 1 3 2 2 2 . . Gunslinging . | . . . . . . . Exploded 2 | . 2 2 2 2 . . Melee . | . . . . . . . Uniques/NPCs Destroyed 1 | . . . . 1 . . YI-UF0 (-9/Mines) Combat | -11 -10 -10 -9 -9 -9 -8 -------- Run | Yrd Mat Min Mat Min Exi Min Hostile Shots Fired 270 | 4 82 16 96 59 . 13 Missed 78 | 1 25 7 24 17 . 4 Damage Taken 3145 | 35 595 127 800 1451 . 137 Core 584 | 23 86 59 140 259 . 17 Absorbed by Shields . | . . . . . . . Regen/Repaired (Parts) 173 | . . . 173 . . . Core Remaining (%) 61 | 90 . 32 . . . . Volleys Fired 244 | 12 45 38 107 36 . 6 Largest 2 | 2 2 2 2 1 . 2 Hottest 122 | 60 80 40 122 57 . 122 Shots Fired 355 | 24 83 55 148 38 . 7 Gun 233 | 24 80 46 74 3 . 6 Cannon 87 | . . . 73 13 . 1 Launcher 35 | . 3 9 1 22 . . Special . | . . . . . . . Kinetic 248 | 12 27 46 146 16 . 1 Thermal 72 | 12 53 . 1 . . 6 Explosive 35 | . 3 9 1 22 . . Electromagnetic . | . . . . . . . Robot Hit Streak 8 | 5 6 6 8 3 . 2 Robot Miss Streak 7 | 2 7 6 6 4 . 5 Penetration Max 1 | . . . 1 . . . Secondary Targets 1 | . 1 . . . . . Max Gunslinging Chain 1 | . 1 . . . . . Shots Hit Robots 179 | 15 41 27 73 17 . 6 Core Hits 114 | 9 21 14 44 21 . 5 Critical Kills 14 | . . . 13 1 . . Critical Parts Destroyed 13 | . 1 . 11 1 . . Critical Strikes 28 | . 1 . 25 2 . . Destroy 28 | . 1 . 25 2 . . Melee Attacks . | . . . . . . . Impact . | . . . . . . . Slashing . | . . . . . . . Piercing . | . . . . . . . Sneak Attacks . | . . . . . . . Combat Hostiles . | . . . . . . . Follow-up Attacks . | . . . . . . . Damage Inflicted 3808 | 158 635 715 1380 842 . 78 Guns 1204 | 158 405 187 366 10 . 78 Cannons 910 | . . . 809 101 . . Explosions 1694 | . 230 528 205 731 . . Melee . | . . . . . . . Ramming . | . . . . . . . Kinetic 1610 | 48 101 187 1163 111 . . Thermal 504 | 110 304 . 12 . . 78 Explosive 1618 | . 230 528 129 731 . . Electromagnetic 76 | . . . 76 . . . Impact . | . . . . . . . Slashing . | . . . . . . . Piercing . | . . . . . . . Highest Corruption 12 | . . . 2 12 12 12 Average Corruption 5 | . . . 1 9 12 12 Corruption Purged . | . . . . . . . Corruption Blocked . | . . . . . . . Effects 58 | . . . 14 15 28 1 Message Errors 13 | . . . 2 3 7 1 Matter Fused 15 | . . . 5 1 9 . Heat Flow Errors 8 | . . . 2 2 4 . Energy Discharges 8 | . . . . 2 6 . Parts Fused 1 | . . . . 1 . . Data Loss (minor) 9 | . . . 3 4 2 . Data Loss (major) 1 | . . . 1 . . . Misfires 2 | . . . . 2 . . Alerts 1 | . . . 1 . . . Overload Shots . | . . . . . . . Overflow Damage 63 | . 11 21 16 15 . . Projectiles 31 | . . . 16 15 . . Explosions 32 | . 11 21 . . . . Melee . | . . . . . . . Knockbacks 4 | . . . 4 . . . Impact . | . . . . . . . Kinetic 4 | . . . 4 . . . Secondary . | . . . . . . . Self-Inflicted Damage 244 | . 9 40 53 142 . . Shots 8 | . 1 1 2 4 . . Rammed . | . . . . . . . Targets Rammed . | . . . . . . . Kicked . | . . . . . . . Crushed . | . . . . . . . Highest Temperature 260 | 58 108 8 260 207 210 79 Average Temperature 52 | 31 47 4 47 80 97 46 Received Heat Transfer 497 | 18 222 30 144 20 . 63 Siege Activations . | . . . . . . . Robots Corrupted . | . . . . . . . Combat Hostiles . | . . . . . . . Parts Fried . | . . . . . . . Impact Corruptions . | . . . . . . . Robots Melted . | . . . . . . . Combat Hostiles . | . . . . . . . Parts Melted 2 | 1 1 . . . . . Heat Transferred 1060 | 250 700 . 15 . . 95 Parts Sabotaged . | . . . . . . . Parts Stolen . | . . . . . . . Parts Stripped . | . . . . . . . Power Chain Reactions . | . . . . . . . Alert | -11 -10 -10 -9 -9 -9 -8 ------- Run | Yrd Mat Min Mat Min Exi Min Peak Influence 460 | 45 194 116 460 160 . 15 Initial 151 | . 29 31 5 151 . . Average 149 | 22 70 73 307 118 . 2 Maximum Alert Level 2 | . . . 2 . . . Low Security (%) 72 | 100 100 100 15 100 . 100 Level 1 22 | . . . 69 . . . Level 2 4 | . . . 15 . . . Level 3 . | . . . . . . . Level 4 . | . . . . . . . Level 5 . | . . . . . . . High Security . | . . . . . . . Max Security . | . . . . . . . Squads Dispatched 6 | . 2 1 3 . . . Investigation 1 | . . . 1 . . . Extermination . | . . . . . . . Reinforcement 4 | . 2 . 2 . . . Assault 1 | . . 1 . . . . Garrison . | . . . . . . . Intercept . | . . . . . . . Searches Triggered . | . . . . . . . Construction Impeded 1 | . . . 1 . . . Haulers Reinforced . | . . . . . . . Active Scanning Responses . | . . . . . . . Cargo Convoy Interrupts . | . . . . . . . Stealth | -11 -10 -10 -9 -9 -9 -8 --------- Run | Yrd Mat Min Mat Min Exi Min Distress Signals 4 | . 1 . 2 1 . . Communications Jammed . | . . . . . . . Distress Signals . | . . . . . . . Times Spotted 95 | 1 21 10 38 22 . 3 Peak Tracking Total 8 | 1 4 4 6 8 . 3 Tactical Retreats 7 | . . . 3 4 . . Traps | -11 -10 -10 -9 -9 -9 -8 ------- Run | Yrd Mat Min Mat Min Exi Min Traps Triggered 3 | . . . 3 . . . Indirectly 2 | . . . 2 . . . Trap Hack Attempts . | . . . . . . . Triggered . | . . . . . . . Disarmed . | . . . . . . . Reprogrammed . | . . . . . . . Reused . | . . . . . . . Traps Extracted . | . . . . . . . Installed . | . . . . . . . Triggered . | . . . . . . . Machines | -11 -10 -10 -9 -9 -9 -8 ---------- Run | Yrd Mat Min Mat Min Exi Min Machines Disabled 7 | . . . 5 1 . 1 Max in Single Turn 2 | . . . 2 1 . 1 Machines Repaired . | . . . . . . . Machines Dismantled . | . . . . . . . Machines Sabotaged . | . . . . . . . Overloaded Fab Kills . | . . . . . . . Hacking | -11 -10 -10 -9 -9 -9 -8 --------- Run | Yrd Mat Min Mat Min Exi Min Machines Accessed 16 | . 6 . 9 . 1 . Terminals 9 | . 4 . 5 . . . Fabricators . | . . . . . . . Repair Stations 3 | . 1 . 2 . . . Recycling Units 3 | . 1 . 2 . . . Scanalyzers . | . . . . . . . Garrison Access . | . . . . . . . Total Hacks 40 | . 15 . 24 . 1 . Successful 24 | . 7 . 16 . 1 . Failed 16 | . 8 . 8 . . . Catastrophic 3 | . 3 . . . . . Database Lockouts . | . . . . . . . Manual 12 | . 6 . 5 . 1 . Terminals 27 | . 11 . 16 . . . Fabricators . | . . . . . . . Repair Stations 6 | . 2 . 4 . . . Recycling Units 6 | . 2 . 4 . . . Scanalyzers . | . . . . . . . Garrison Access . | . . . . . . . Terminal Hacks 11 | . 3 . 7 . 1 . Record 7 | . . . 7 . . . Robot Analysis 1 | . 1 . . . . . Prototype ID Bank 1 | . 1 . . . . . Branch Access Points 1 | . 1 . . . . . Derelict Proto ID Bank 1 | . . . . . 1 . Fabricator Hacks . | . . . . . . . Repair Station Hacks 5 | . 1 . 4 . . . Scan Component 3 | . 1 . 2 . . . Repair 2 | . . . 2 . . . Recycling Unit Hacks 6 | . 2 . 4 . . . Process 1 | . . . 1 . . . Report Inventory 3 | . 1 . 2 . . . Retrieve Matter 1 | . . . 1 . . . Retrieve Components 1 | . 1 . . . . . Scanalyzer . | . . . . . . . Garrison Access Hacks . | . . . . . . . Unauthorized Hacks 2 | . 1 . 1 . . . Terminals 2 | . 1 . 1 . . . Botnet 2 | . 1 . 1 . . . Fabricators . | . . . . . . . Repair Stations . | . . . . . . . Recycling Units . | . . . . . . . Scanalyzers . | . . . . . . . Garrison Access . | . . . . . . . Data Cores Recovered . | . . . . . . . Used . | . . . . . . . Hacking Detections 10 | . 5 . 5 . . . Full Trace Events 2 | . 1 . 1 . . . Feedback Events . | . . . . . . . Feedback Blocked . | . . . . . . . Robot Schematics Acquired . | . . . . . . . Robots Built . | . . . . . . . Authchips . | . . . . . . . Time . | . . . . . . . Total Robot Build Rating . | . . . . . . . Part Schematics Acquired . | . . . . . . . Parts Built . | . . . . . . . Authchips . | . . . . . . . Time . | . . . . . . . Total Part Build Rating . | . . . . . . . Parts Repaired 2 | . . . 2 . . . Time 100 | . . . 100 . . . Parts Recycled . | . . . . . . . Recycled Matter 131 | . . . 131 . . . Retrieved Matter 131 | . . . 131 . . . Retrieved Components 4 | . 4 . . . . . Parts Scanalyzed . | . . . . . . . Part Schematics Acquired . | . . . . . . . Parts Damaged . | . . . . . . . Bothacking | -11 -10 -10 -9 -9 -9 -8 ------------ Run | Yrd Mat Min Mat Min Exi Min Used RIF Installer . | . . . . . . . Robots Hacked . | . . . . . . . Non-combat . | . . . . . . . Combat . | . . . . . . . Robot Hacks Applied . | . . . . . . . Relay Couplers Released . | . . . . . . . Fabnet Peak Effective % . | . . . . . . . Robots Rewired . | . . . . . . . Allies Hacked . | . . . . . . . Hacks Repelled . | . . . . . . . Allies | -11 -10 -10 -9 -9 -9 -8 -------- Run | Yrd Mat Min Mat Min Exi Min Total Allies 1 | . . 1 . . . . Largest Group 1 | . . 1 . . . . Highest-Rated Group 31 | . . 31 . . . . Highest-Rated Ally 31 | . . 31 . . . . Total Orders . | . . . . . . . Ally Attacks 7 | . . 7 . . . . Total Damage 107 | . . 107 . . . . Kills 1 | . . 1 . . . . Allies Corrupted . | . . . . . . . Allies Melted . | . . . . . . . Intel | -11 -10 -10 -9 -9 -9 -8 ------- Run | Yrd Mat Min Mat Min Exi Min Robot Analysis Total 1 | . 1 . . . . . Derelict Logs Recovered 3 | . . 3 . . . . Drone Launches . | . . . . . . . Drone Recoveries . | . . . . . . . Exploration | -11 -10 -10 -9 -9 -9 -8 ------------- Run | Yrd Mat Min Mat Min Exi Min Turns Passed 5109 | 167 1226 1117 1420 462 685 32 Spaces Moved 2573 | 107 619 519 643 214 457 14 Core 15 | 13 . 2 . . . . Treads . | . . . . . . . Legs 2557 | 94 619 517 642 214 457 14 Wheels . | . . . . . . . Hover . | . . . . . . . Flight 1 | . . . 1 . . . Fastest Speed 50 | 50 120 120 120 130 130 130 Average Speed 162 | 111 162 195 151 176 147 130 Slowest Speed 520 | 120 190 450 520 270 200 130 Overloaded Moves . | . . . . . . . Propulsion Burnouts . | . . . . . . . Robots Hopped . | . . . . . . . Cave-ins Triggered 1 | . . . . 1 . . Exploration Rate (%) 54 | 7 72 93 54 55 90 8 Regions Visited 6 Branch Regions 4 Pre-discovered Areas . | . . . . . . . Known Exits Taken 4 | . 1 1 1 1 . . Unknown Exits Taken 2 | 1 . . . . 1 . Scrap Searched 2 | . . 2 . . . . Spaces Dug 1 | . . . 1 . . . Terrain Destroyed 278 | . 25 89 40 124 . . Melee . | . . . . . . . Projectile 41 | . . . 36 5 . . AOE 237 | . 25 89 4 119 . . Terrain Rammed . | . . . . . . . Walls Destroyed . | . . . . . . . Machines Disabled . | . . . . . . . Actions | -11 -10 -10 -9 -9 -9 -8 --------- Run | Yrd Mat Min Mat Min Exi Min Total 3179 | 129 761 576 958 263 470 22 Wait 218 | . 66 4 140 8 . . Move 2566 | 106 618 518 642 212 456 14 Hop . | . . . . . . . Pick Up 42 | 4 13 2 13 1 9 . Fast Attach 21 | 7 3 2 8 . 1 . Attach 16 | . 3 1 6 4 . 2 Detach 8 | . 2 . 4 . 2 . Swap 28 | . 6 5 16 1 . . Drop 35 | . 5 6 22 . 2 . Fire 244 | 12 45 38 107 36 . 6 Melee . | . . . . . . . Ram . | . . . . . . . Kick . | . . . . . . . Crush . | . . . . . . . Escape Stasis 1 | . . . . 1 . . Rewire . | . . . . . . . Trap . | . . . . . . . Miscellaneous . | . . . . . . . Route ------- -11/Scrapyard -10/Materials (discovered 5 exits: *Mat x2 / *Min x2 / [Sub]) -10/Mines (discovered 2 exits: *Mat x2) -9/Materials (discovered 2 exits: *Mat / *Min) -9/Mines (discovered 3 exits: *Mat x2 / *Exi) -9/Exiles -8/Mines History --------- Turn | Location | Event 2 | -11/Scrapyard | Met Revision 17 61 | -11/Scrapyard | Discovered new exit (range 8) 168 | -11/Scrapyard | Entered Materials 185 | -10/Materials | Identified exit to Mines 307 | -10/Materials | Build established: Mutant 336 | -10/Materials | Discovered new exit (range 6) 515 | -10/Materials | Discovered new exit (range 10) 764 | -10/Materials | Build established: Scavenger-Mutant 1317 | -10/Materials | Discovered new exit (range 4) 1394 | -10/Materials | Entered Mines 1432 | -10/Mines | Identified exit to Materials 1434 | -10/Mines | Discovered exit to Materials (range 5) 1439 | -10/Mines | Core integrity fell below 50% 1574 | -10/Mines | Received a Rocket Launcher from a helpful Derelict 1667 | -10/Mines | Met a Derelict testing a Signal Generator 2374 | -10/Mines | Learned Materials terminal intel 2396 | -10/Mines | A weapon hastily lodged in a ceiling crevice suddenly fell to the ground 2511 | -10/Mines | Entered Materials 2511 | -9/Materials | Evolved 2 slots: Propulsion x1, Utility x1 2512 | -9/Materials | Loaded intel: 12 terminal locations 3154 | -9/Materials | Repaired Bore Cannon 3392 | -9/Materials | Discovered new exit (range 16) 3421 | -9/Materials | Identified exit to Materials 3770 | -9/Materials | Repaired Bore Cannon 3832 | -9/Materials | Discovered new exit (range 15) 3850 | -9/Materials | Identified exit to Mines 3931 | -9/Materials | Entered Mines 3974 | -9/Mines | Discovered exit to Materials (range 13) 3984 | -9/Mines | Build established: Mutant 3994 | -9/Mines | Assembled infested the area 4041 | -9/Mines | Core integrity fell below 50% 4082 | -9/Mines | Core integrity fell below 20% 4082 | -9/Mines | Destroyed YI-UF0 4098 | -9/Mines | Crushed by falling debris 4099 | -9/Mines | System corruption reached 10% 4103 | -9/Mines | Destroyed 7 combat bots 4103 | -9/Mines | Discovered exit to Materials (range 12) 4129 | -9/Mines | Lost 7 parts (2p3n1u1w) 4383 | -9/Mines | Deemed a non-threat by the Exiles lab entrance 4385 | -9/Mines | Discovered new exit (range 5) 4391 | -9/Mines | Identified exit to Exiles 4393 | -9/Mines | Entered Exiles 4442 | -9/Exiles | Met 8R-AWN 4476 | -9/Exiles | Met EX-HEX 4532 | -9/Exiles | Met EX-BIN 4560 | -9/Exiles | Aligned with FarCom system 4562 | -9/Exiles | Given EX-Vault access code 4608 | -9/Exiles | Opened EX-Vault 4622 | -9/Exiles | Found Lightpack 2.0 4672 | -9/Exiles | Warned to stay clear of 0b10 Research branches 4709 | -9/Exiles | Met EX-DEC 4751 | -9/Exiles | Visited The Gauntlet 4909 | -9/Exiles | Build established: Hauler-Mutant 5062 | -9/Exiles | Discovered new exit (range 14) 5078 | -9/Exiles | Left Exiles lab with Lightpack 2.0 5078 | -9/Exiles | Entered Mines 5110 | -8/Mines | Destroyed by G-47 Trooper with Particle Gun Last Messages --------------- 04768_ M5C CP9L O QKLYFWVTV>2Y 04786_ System corrupted: Matter fused (-8). 04817_ System corrupted: Heat flow error (+205). 04832_ J6I1#EGOSO 7PY=QEA I 04851_ System corrupted: Energy discharge (-26). 04887_ FXUC4QG3MPH=T1D=YEBC 81YO&YW,Z,GTLGUCI6 05097_ Core Extractor disabled. 05100_ Bore Cannon destroyed. Map ----- +----------------------------------------------------+ | ?????????????????????????????????????????????????? | | ?????????????????????????????????????????????????? | | ?????????????????????????????????????????????????? | | ?????????????????????????????????????????????????? | | ?????????????????????????????????????????????????? | | ?????????????????????????????????????????????????? | | ?????????????????????????????????????????????????? | | ?????????????????????????????????????????????????? | | ?????????????????????????????????????????????????? | | ?????????????????????????????????????????????????? | | ?????????????????????????????????????????????????? | | ?????????????????????????????????????????????????? | | ?????????????????????????????????????????????????? | | ?????????????????????????????????????????????????? | | ?????????????????????????????????????????????????? | | ?????????????????????????????????????????????????? | | ?????????????????????????????????????????????????? | | ?????????????????????????????????????????????????? | | ?????????????????????????????????????????????????? | | ?????????????????????????????????????????????????? | | ??????????????????????#??????????????????????????? | | ??????????????????????# ????????????? ?????????? | | ??????????????????????# ????????????? ?????????? | | ?????????????????????## ???????????# ?????????? | | ?????????????????????# ##????????? ?????????? | | ?????????????????????# @###??????? #?????????? | | ?????????????????????## b ####???? #?????????? | | ??????????????????????## ##??? #?????????? | | ???????????????????????## ##?? #?????????? | | ????????????????????????## ##?# #?????????? | | ?????????????????????????## #?# #?????????? | | ??????????????????????????##gg" " #?# #?????????? | | ????????????????????? # ### """ ### #?????????? | | ???????????????????# """ ## #?????????? | | ??????????????????? u #?????????? | | ??????????????????????? ### ##????????? | | ????????????????????? ???## ## #????????? | | ???????????????????????????####### #????????? | | ?????????????????????????????????##### #????????? | | ?????????????????????????????????????? #????????? | | ?????????????????????????????????????? #????????? | | ?????????????????????????????????????? #????????? | | ??????????????????????????????????????? ????????? | | ??????????????????????????????????????? ????????? | | ??????????????????????????????????????? ???????? | | ??????????????????????????????????????? ???????? | | ???????????????????????????????????????? #??????? | | ???????????????????????????????????????? ##??????? | | ????????????????????????????????????????##???????? | | ?????????????????????????????????????????????????? | +----------------------------------------------------+ Best States ------------- Heat Dissipation 28 Energy Generation 14 Energy Capacity 140 Matter Stores 300 Matter Capacity 300 Sight Range 16 Terrain Scan Range 16 Terrain Scan Density 85 Armor Coverage 150 Evasion (%) 55 Item Schematics ----------------- None Robot Schematics ------------------ None Fabricated ------------ Nothing Alien Tech Used ----------------- None Achievements -------------- I Survived The Infestation Maybe Next Time I'll Detach My Launcher Storm Trooper Unlikely Earthworm Challenges ------------ None Game ------ Seed ProtonNeutrinoTrident Manual? 0 Play Time 01:09:52 Cumulative 6.5 hours Start 2024.09.03 @ 20:25:24 End 2024.09.03 @ 21:52:47 Sessions 3 Manual Loads 0 Difficulty Rogue Special Mode None Game No. 2 Rogue 2 Adventurer 0 Explorer 0 Win Type - Total 0 Types 0/0/0/0/0/0/0/0/0 Lore% 6 Gallery% 6 Achievement% 12 Wizard Run 0 Options --------- Layout 2 ASCII 0 Keyboard 0 Movement Vi Keybinds 0 Fullscreen 1 Font 18/SmallcapsGlow Map View 50x49 Zoom Use 0% Tactical HUD 1 Map Filters NONE Filters NONE Steam 0 RUN: 0f29953b-a6ec-450b-a725-d8c00bb85eef